Workbook

Sheet Sheet1
A1: 中国石油大学（北京）化学工程学院2020级研究生综合测评汇总表
A2: 学号 | B2: 姓名 | C2: 方向（工艺学硕、工艺专硕、工程学硕、工程专硕、催化学硕、催化专硕、环工学硕、环工专硕、环科学硕、国际班） | D2: 德育成绩 | J2: 智育成绩 | P2: 文体成绩 | V2: 总分 | W2: 排名
D3: 基础分 | E3: 奖励分 | F3: 惩罚分 | G3: 个人德育总分 | H3: 个人德育总分/基准 | I3: 德育总成绩 | J3: 学习成绩分 | K3: 奖励分 | L3: 惩罚分 | M3: 个人智育总分 | N3: 个人智育总分/基准 | O3: 智育总成绩 | P3: 基本分 | Q3: 奖励分 | R3: 惩罚分 | S3: 个人文体总 分 | T3: 总分/基准 | U3: 文体总成绩
A4: 2020310205 | B4: 甘永豪 | C4: 化工博20 | D4: =[1]德育基础分!BN6 -> 97.2836066 | E4: =[1]德育加分!AF7 -> 4.8 | F4: =[1]德育扣分!K6 -> 0 | G4: =D4+E4+F4 -> 102.0836066 | H4: =G4/108.8262295 -> 0.9380423 | I4: =H4*100 -> 93.80422994 | J4: =[1]学习成绩!E5 -> 91.4000000 | K4: =[1]智育加分!CR6 -> 34.5833333 | L4: 0 | M4: =J4+K4+L4 -> 125.9833333 | N4: =M4/125.9833333 -> 1.000000000 | O4: =100*N4 -> 100.00000003 | P4: 100 | Q4: =[1]文体加分!N8 -> 0 | R4: 0 | S4: =P4+Q4+R4 -> 100 | T4: =S4/105 -> 0.9523809524 | U4: =100*T4 -> 95.2380952 | V4: =0.2*I4+0.7*O4+0.1*U4 -> 98.28465553 | W4: 1
A5: 2020310251 | B5: 陈政宇 | C5: 化工博20 | D5: =[1]德育基础分!BN52 -> 97.1803279 | E5: =[1]德育加分!AF53 -> 4 | F5: =[1]德育扣分!K52 -> 0 | G5: 101.1803279 | H5: 0.9297421 | I5: 92.97421066 | J5: =[1]学习成绩!E51 -> 92.4400000 | K5: =[1]智育加分!CR52 -> 26.8630952 | L5: 0 | M5: 119.3030952 | N5: 0.946975224 | O5: 94.69752237 | P5: 100 | Q5: =[1]文体加分!N54 -> 0 | R5: 0 | S5: 100 | T5: 0.9523809524 | U5: 95.2380952 | V5: 94.40691732 | W5: 2
A6: 2020310253 | B6: 黄文斌 | C6: 化工博20 | D6: =[1]德育基础分!BN54 -> 97.2262295 | E6: =[1]德育加分!AF55 -> 6 | F6: =[1]德育扣分!K54 -> 0 | G6: 103.2262295 | H6: 0.9485418 | I6: 94.85418174 | J6: =[1]学习成绩!E53 -> 90.6200000 | K6: =[1]智育加分!CR54 -> 22.9285714 | L6: 0 | M6: 113.5485714 | N6: 0.901298358 | O6: 90.12983579 | P6: 100 | Q6: =[1]文体加分!N56 -> 0 | R6: 0 | S6: 100 | T6: 0.9523809524 | U6: 95.2380952 | V6: 91.58553093 | W6: 3
A7: 2020310250 | B7: 张国豪 | C7: 化工博20 | D7: =[1]德育基础分!BN51 -> 97.2836066 | E7: =[1]德育加分!AF52 -> 7.5 | F7: =[1]德育扣分!K51 -> 0 | G7: 104.7836066 | H7: 0.9628525 | I7: 96.28524946 | J7: =[1]学习成绩!E50 -> 90.4500000 | K7: =[1]智育加分!CR51 -> 20.7380952 | L7: 0 | M7: 111.1880952 | N7: 0.882561942 | O7: 88.25619415 | P7: 100 | Q7: =[1]文体加分!N53 -> 0 | R7: 0 | S7: 100 | T7: 0.9523809524 | U7: 95.2380952 | V7: 90.56019532 | W7: 4
A8: 2020310215 | B8: 国欣 | C8: 化工博20 | D8: =[1]德育基础分!BN16 -> 97.2262295 | E8: =[1]德育加分!AF17 -> 4.8 | F8: =[1]德育扣分!K16 -> 0 | G8: 102.0262295 | H8: 0.9375151 | I8: 93.75150639 | J8: =[1]学习成绩!E15 -> 87.5600000 | K8: =[1]智育加分!CR16 -> 15.0000000 | L8: 0 | M8: 102.5600000 | N8: 0.814075936 | O8: 81.40759362 | P8: 100 | Q8: =[1]文体加分!N18 -> 0.5 | R8: 0 | S8: 100.5 | T8: 0.9571428571 | U8: 95.7142857 | V8: 85.30704538 | W8: 5
A9: 2020310237 | B9: 李运运 | C9: 化工博20 | D9: =[1]德育基础分!BN38 -> 97.2262295 | E9: =[1]德育加分!AF39 -> 0 | F9: =[1]德育扣分!K38 -> 0 | G9: 97.2262295 | H9: 0.8934081 | I9: 89.34080502 | J9: =[1]学习成绩!E37 -> 85.2500000 | K9: =[1]智育加分!CR38 -> 17.8571429 | L9: 0 | M9: 103.1071429 | N9: 0.818418914 | O9: 81.84189143 | P9: 100 | Q9: =[1]文体加分!N40 -> 0 | R9: 0 | S9: 100 | T9: 0.9523809524 | U9: 95.2380952 | V9: 84.68129453 | W9: 6
A10: 2020310227 | B10: 吕涵 | C10: 化工博20 | D10: =[1]德育基础分!BN28 -> 97.2491803 | E10: =[1]德育加分!AF29 -> 0 | F10: =[1]德育扣分!K28 -> 0 | G10: 97.2491803 | H10: 0.8936189 | I10: 89.36189444 | J10: =[1]学习成绩!E27 -> 95.3000000 | K10: =[1]智育加分!CR28 -> 6.0833333 | L10: 0 | M10: 101.3833333 | N10: 0.804736076 | O10: 80.47360764 | P10: 100 | Q10: =[1]文体加分!N30 -> 0 | R10: 0 | S10: 100 | T10: 0.9523809524 | U10: 95.2380952 | V10: 83.72771376 | W10: 7
A11: 2020310221 | B11: 黄子轩 | C11: 化工博20 | D11: =[1]德育基础分!BN22 -> 97.2262295 | E11: =[1]德育加分!AF23 -> 3 | F11: =[1]德育扣分!K22 -> 0 | G11: 100.2262295 | H11: 0.9209749 | I11: 92.09749338 | J11: =[1]学习成绩!E21 -> 90.6800000 | K11: =[1]智育加分!CR22 -> 8.7500000 | L11: 0 | M11: 99.4300000 | N11: 0.789231380 | O11: 78.92313800 | P11: 100 | Q11: =[1]文体加分!N24 -> 0 | R11: 0 | S11: 100 | T11: 0.9523809524 | U11: 95.2380952 | V11: 83.18950480 | W11: 8
A12: 2020310240 | B12: 党法璐 | C12: 化工博20 | D12: =[1]德育基础分!BN41 -> 97.2606557 | E12: =[1]德育加分!AF42 -> 6 | F12: =[1]德育扣分!K41 -> 0 | G12: 103.2606557 | H12: 0.9488582 | I12: 94.88581587 | J12: =[1]学习成绩!E40 -> 92.5500000 | K12: =[1]智育加分!CR41 -> 3.6250000 | L12: 0 | M12: 96.1750000 | N12: 0.763394629 | O12: 76.33946291 | P12: 100 | Q12: =[1]文体加分!N43 -> 0 | R12: 0 | S12: 100 | T12: 0.9523809524 | U12: 95.2380952 | V12: 81.93859674 | W12: 9
A13: 2020310241 | B13: 张莹 | C13: 化工博20 | D13: =[1]德育基础分!BN42 -> 97.2147541 | E13: =[1]德育加分!AF43 -> 0 | F13: =[1]德育扣分!K42 -> 0 | G13: 97.2147541 | H13: 0.8933026 | I13: 89.33026031 | J13: =[1]学习成绩!E41 -> 92.7600000 | K13: =[1]智育加分!CR42 -> 5.1964286 | L13: 0 | M13: 97.9564286 | N13: 0.777534822 | O13: 77.75348215 | P13: 100 | Q13: =[1]文体加分!N44 -> 0 | R13: 0 | S13: 100 | T13: 0.9523809524 | U13: 95.2380952 | V13: 81.81729909 | W13: 10
A14: 2020310208 | B14: 王恩华 | C14: 化工博20 | D14: =[1]德育基础分!BN9 -> 97.2377049 | E14: =[1]德育加分!AF10 -> 4.6 | F14: =[1]德育扣分!K9 -> 0 | G14: 101.8377049 | H14: 0.9357827 | I14: 93.57827188 | J14: =[1]学习成绩!E8 -> 90.9200000 | K14: =[1]智育加分!CR9 -> 4.2777778 | L14: 0 | M14: 95.1977778 | N14: 0.755637871 | O14: 75.56378712 | P14: 100 | Q14: =[1]文体加分!N11 -> 0 | R14: 0 | S14: 100 | T14: 0.9523809524 | U14: 95.2380952 | V14: 81.13411488 | W14: 11
A15: 2020310248 | B15: 刘玉洁 | C15: 化工博20 | D15: =[1]德育基础分!BN49 -> 97.2262295 | E15: =[1]德育加分!AF50 -> 11.6 | F15: =[1]德育扣分!K49 -> 0 | G15: 108.8262295 | H15: 1.0000000 | I15: 100 | J15: =[1]学习成绩!E48 -> 84.3800000 | K15: =[1]智育加分!CR49 -> 7.3214286 | L15: 0 | M15: 91.7014286 | N15: 0.727885397 | O15: 72.78853970 | P15: 100 | Q15: =[1]文体加分!N51 -> 5 | R15: 0 | S15: 105 | T15: 1 | U15: 100.0000000 | V15: 80.95197779 | W15: 12
A16: 2020310226 | B16: 刘堉学 | C16: 化工博20 | D16: =[1]德育基础分!BN27 -> 97.2491803 | E16: =[1]德育加分!AF28 -> 0 | F16: =[1]德育扣分!K27 -> 0 | G16: 97.2491803 | H16: 0.8936189 | I16: 89.36189444 | J16: =[1]学习成绩!E26 -> 93.9400000 | K16: =[1]智育加分!CR27 -> 2.0833333 | L16: 0 | M16: 96.0233333 | N16: 0.762190766 | O16: 76.21907662 | P16: 100 | Q16: =[1]文体加分!N29 -> 0 | R16: 0 | S16: 100 | T16: 0.9523809524 | U16: 95.2380952 | V16: 80.74954204 | W16: 13
A17: 2020310206 | B17: 张瑞航 | C17: 化工博20 | D17: =[1]德育基础分!BN7 -> 97.2262295 | E17: =[1]德育加分!AF8 -> 3 | F17: =[1]德育扣分!K7 -> 0 | G17: 100.2262295 | H17: 0.9209749 | I17: 92.09749338 | J17: =[1]学习成绩!E6 -> 93.3400000 | K17: =[1]智育加分!CR7 -> 1.5000000 | L17: 0 | M17: 94.8400000 | N17: 0.752797989 | O17: 75.27979894 | P17: 100 | Q17: =[1]文体加分!N9 -> 0 | R17: 0 | S17: 100 | T17: 0.9523809524 | U17: 95.2380952 | V17: 80.63916745 | W17: 14
A18: 2020310224 | B18: 韩旭 | C18: 化工博20 | D18: =[1]德育基础分!BN25 -> 97.2836066 | E18: =[1]德育加分!AF26 -> 6.8 | F18: =[1]德育扣分!K25 -> 0 | G18: 104.0836066 | H18: 0.9564202 | I18: 95.64202218 | J18: =[1]学习成绩!E24 -> 93.3400000 | K18: =[1]智育加分!CR25 -> 0.0000000 | L18: 0 | M18: 93.3400000 | N18: 0.740891653 | O18: 74.08916525 | P18: 100 | Q18: =[1]文体加分!N27 -> 0.5 | R18: 0 | S18: 100.5 | T18: 0.9571428571 | U18: 95.7142857 | V18: 80.56224868 | W18: 15
A19: 2020310210 | B19: 崔怡洲 | C19: 化工博20 | D19: =[1]德育基础分!BN11 -> 97.2491803 | E19: =[1]德育加分!AF12 -> 4.6 | F19: =[1]德育扣分!K11 -> 0 | G19: 101.8491803 | H19: 0.9358882 | I19: 93.58881659 | J19: =[1]学习成绩!E10 -> 88.8000000 | K19: =[1]智育加分!CR11 -> 4.2500000 | L19: 0 | M19: 93.0500000 | N19: 0.738589761 | O19: 73.85897607 | P19: 100 | Q19: =[1]文体加分!N13 -> 0 | R19: 0 | S19: 100 | T19: 0.9523809524 | U19: 95.2380952 | V19: 79.94285609 | W19: 16
A20: 2020310252 | B20: 李双莹 | C20: 化工博20 | D20: =[1]德育基础分!BN53 -> 97.2377049 | E20: =[1]德育加分!AF54 -> 0 | F20: =[1]德育扣分!K53 -> 0 | G20: 97.2377049 | H20: 0.8935135 | I20: 89.35134973 | J20: =[1]学习成绩!E52 -> 87.4200000 | K20: =[1]智育加分!CR53 -> 7.0541126 | L20: 0 | M20: 94.4741126 | N20: 0.749893737 | O20: 74.98937366 | P20: 100 | Q20: =[1]文体加分!N55 -> 0 | R20: 0 | S20: 100 | T20: 0.9523809524 | U20: 95.2380952 | V20: 79.88664103 | W20: 17
A21: 2020310231 | B21: 马桂璇 | C21: 化工博20 | D21: =[1]德育基础分!BN32 -> 97.2950820 | E21: =[1]德育加分!AF33 -> 4 | F21: =[1]德育扣分!K32 -> 0 | G21: 101.2950820 | H21: 0.9307966 | I21: 93.07965776 | J21: =[1]学习成绩!E31 -> 92.9000000 | K21: =[1]智育加分!CR32 -> 0.0000000 | L21: 0 | M21: 92.9000000 | N21: 0.737399127 | O21: 73.73991271 | P21: 100 | Q21: =[1]文体加分!N34 -> 0 | R21: 0 | S21: 100 | T21: 0.9523809524 | U21: 95.2380952 | V21: 79.75767997 | W21: 18
A22: 2020310228 | B22: 孙悦 | C22: 化工博20 | D22: =[1]德育基础分!BN29 -> 97.2147541 | E22: =[1]德育加分!AF30 -> 3 | F22: =[1]德育扣分!K29 -> 0 | G22: 100.2147541 | H22: 0.9208695 | I22: 92.08694867 | J22: =[1]学习成绩!E28 -> 92.5000000 | K22: =[1]智育加分!CR29 -> 0.0000000 | L22: 0 | M22: 92.5000000 | N22: 0.734224104 | O22: 73.42241039 | P22: 100 | Q22: =[1]文体加分!N31 -> 0 | R22: 0 | S22: 100 | T22: 0.9523809524 | U22: 95.2380952 | V22: 79.33688653 | W22: 19
A23: 2020310229 | B23: 崔家馨 | C23: 化工博20 | D23: =[1]德育基础分!BN30 -> 97.2606557 | E23: =[1]德育加分!AF31 -> 0 | F23: =[1]德育扣分!K30 -> 0 | G23: 97.2606557 | H23: 0.8937244 | I23: 89.37243915 | J23: =[1]学习成绩!E29 -> 92.9500000 | K23: =[1]智育加分!CR30 -> 0.0000000 | L23: 0 | M23: 92.9500000 | N23: 0.737796005 | O23: 73.77960050 | P23: 100 | Q23: =[1]文体加分!N32 -> 0 | R23: 0 | S23: 100 | T23: 0.9523809524 | U23: 95.2380952 | V23: 79.04401770 | W23: 20
A24: 2020310217 | B24: 玄雪梅 | C24: 化工博20 | D24: =[1]德育基础分!BN18 -> 97.2836066 | E24: =[1]德育加分!AF19 -> 3 | F24: =[1]德育扣分!K18 -> 0 | G24: 100.2836066 | H24: 0.9215022 | I24: 92.15021693 | J24: =[1]学习成绩!E17 -> 86.3400000 | K24: =[1]智育加分!CR18 -> 5.2500000 | L24: 0 | M24: 91.5900000 | N24: 0.727000926 | O24: 72.70009262 | P24: 100 | Q24: =[1]文体加分!N20 -> 0 | R24: 0 | S24: 100 | T24: 0.9523809524 | U24: 95.2380952 | V24: 78.84391775 | W24: 21
A25: 2020310249 | B25: 魏晨浩 | C25: 化工博20 | D25: =[1]德育基础分!BN50 -> 97.2377049 | E25: =[1]德育加分!AF51 -> 3.5 | F25: =[1]德育扣分!K50 -> 0 | G25: 100.7377049 | H25: 0.9256749 | I25: 92.56748615 | J25: =[1]学习成绩!E49 -> 91.2200000 | K25: =[1]智育加分!CR50 -> 0.0000000 | L25: 0 | M25: 91.2200000 | N25: 0.724064030 | O25: 72.40640298 | P25: 100 | Q25: =[1]文体加分!N52 -> 0 | R25: 0 | S25: 100 | T25: 0.9523809524 | U25: 95.2380952 | V25: 78.72178884 | W25: 22
A26: 2020310218 | B26: 郭润 | C26: 化工博20 | D26: =[1]德育基础分!BN19 -> 97.1459016 | E26: =[1]德育加分!AF20 -> 0 | F26: =[1]德育扣分!K19 -> 0 | G26: 97.1459016 | H26: 0.8926699 | I26: 89.26699205 | J26: =[1]学习成绩!E18 -> 88.3500000 | K26: =[1]智育加分!CR19 -> 3.7500000 | L26: 0 | M26: 92.1000000 | N26: 0.731049081 | O26: 73.10490808 | P26: 100 | Q26: =[1]文体加分!N21 -> 0 | R26: 0 | S26: 100 | T26: 0.9523809524 | U26: 95.2380952 | V26: 78.55064359 | W26: 23
A27: 2020310254 | B27: 刘昊然 | C27: 化工博20 | D27: =[1]德育基础分!BN55 -> 97.2377049 | E27: =[1]德育加分!AF56 -> 3 | F27: =[1]德育扣分!K55 -> 0 | G27: 100.2377049 | H27: 0.9210804 | I27: 92.10803809 | J27: =[1]学习成绩!E54 -> 90.6400000 | K27: =[1]智育加分!CR55 -> 0.3750000 | L27: 0 | M27: 91.0150000 | N27: 0.722436830 | O27: 72.24368305 | P27: 100 | Q27: =[1]文体加分!N57 -> 0 | R27: 0 | S27: 100 | T27: 0.9523809524 | U27: 95.2380952 | V27: 78.51599527 | W27: 24
A28: 2020310239 | B28: 祝一健 | C28: 化工博20 | D28: =[1]德育基础分!BN40 -> 97.2377049 | E28: =[1]德育加分!AF41 -> 3 | F28: =[1]德育扣分!K40 -> 0 | G28: 100.2377049 | H28: 0.9210804 | I28: 92.10803809 | J28: =[1]学习成绩!E39 -> 90.7000000 | K28: =[1]智育加分!CR40 -> 0.0000000 | L28: 0 | M28: 90.7000000 | N28: 0.719936500 | O28: 71.99364997 | P28: 100 | Q28: =[1]文体加分!N42 -> 0 | R28: 0 | S28: 100 | T28: 0.9523809524 | U28: 95.2380952 | V28: 78.34097212 | W28: 25
A29: 2020310219 | B29: 赵云鹏 | C29: 化工博20 | D29: =[1]德育基础分!BN20 -> 97.2491803 | E29: =[1]德育加分!AF21 -> 4 | F29: =[1]德育扣分!K20 -> 0 | G29: 101.2491803 | H29: 0.9303748 | I29: 93.03747892 | J29: =[1]学习成绩!E19 -> 90.1500000 | K29: =[1]智育加分!CR20 -> 0.1250000 | L29: 0 | M29: 90.2750000 | N29: 0.716563038 | O29: 71.65630376 | P29: 100 | Q29: =[1]文体加分!N22 -> 0 | R29: 0 | S29: 100 | T29: 0.9523809524 | U29: 95.2380952 | V29: 78.29071794 | W29: 26
A30: 2020310247 | B30: 刘洪辰 | C30: 化工博20 | D30: =[1]德育基础分!BN48 -> 97.2032787 | E30: =[1]德育加分!AF49 -> 0 | F30: =[1]德育扣分!K48 -> 0 | G30: 97.2032787 | H30: 0.8931972 | I30: 89.3197156 | J30: =[1]学习成绩!E47 -> 89.3000000 | K30: =[1]智育加分!CR48 -> 2.2727273 | L30: 0 | M30: 91.5727273 | N30: 0.726863823 | O30: 72.68638230 | P30: 100 | Q30: =[1]文体加分!N50 -> 0 | R30: 0 | S30: 100 | T30: 0.9523809524 | U30: 95.2380952 | V30: 78.26822025 | W30: 27
A31: 2020310235 | B31: 张强 | C31: 化工博20 | D31: =[1]德育基础分!BN36 -> 97.2262295 | E31: =[1]德育加分!AF37 -> 4.6 | F31: =[1]德育扣分!K36 -> 0 | G31: 101.8262295 | H31: 0.9356773 | I31: 93.56772717 | J31: =[1]学习成绩!E35 -> 90.0200000 | K31: =[1]智育加分!CR36 -> 0.0000000 | L31: 0 | M31: 90.0200000 | N31: 0.714538960 | O31: 71.45389604 | P31: 100 | Q31: =[1]文体加分!N38 -> 0 | R31: 0 | S31: 100 | T31: 0.9523809524 | U31: 95.2380952 | V31: 78.25508218 | W31: 28
A32: 2020310223 | B32: 孔双祝 | C32: 化工博20 | D32: =[1]德育基础分!BN24 -> 97.1803279 | E32: =[1]德育加分!AF25 -> 4.6 | F32: =[1]德育扣分!K24 -> 0 | G32: 101.7803279 | H32: 0.9352555 | I32: 93.52554833 | J32: =[1]学习成绩!E23 -> 89.3000000 | K32: =[1]智育加分!CR24 -> 0.5000000 | L32: 0 | M32: 89.8000000 | N32: 0.712792698 | O32: 71.27926976 | P32: 100 | Q32: =[1]文体加分!N26 -> 0 | R32: 0 | S32: 100 | T32: 0.9523809524 | U32: 95.2380952 | V32: 78.12440802 | W32: 29
A33: 2020310204 | B33: 胡尊龙 | C33: 化工博20 | D33: =[1]德育基础分!BN5 -> 97.2491803 | E33: =[1]德育加分!AF6 -> 0 | F33: =[1]德育扣分!K5 -> 0 | G33: 97.2491803 | H33: 0.8936189 | I33: 89.36189444 | J33: =[1]学习成绩!E4 -> 91.2750000 | K33: =[1]智育加分!CR5 -> 0.0000000 | L33: 0 | M33: 91.2750000 | N33: 0.724500596 | O33: 72.45005955 | P33: 100 | Q33: =[1]文体加分!N7 -> 0 | R33: 0 | S33: 100 | T33: 0.9523809524 | U33: 95.2380952 | V33: 78.11123010 | W33: 30
A34: 2020310201 | B34: 王雪 | C34: 化工博20 | D34: =[1]德育基础分!BN3 -> 97.2147541 | E34: =[1]德育加分!AF4 -> 8 | F34: =[1]德育扣分!K3 -> 0 | G34: 105.2147541 | H34: 0.9668143 | I34: 96.68142927 | J34: =[1]学习成绩!E2 -> 87.8000000 | K34: =[1]智育加分!CR3 -> 0.3750000 | L34: 0 | M34: 88.1750000 | N34: 0.699894166 | O34: 69.98941661 | P34: 100 | Q34: =[1]文体加分!N5 -> 0 | R34: 0 | S34: 100 | T34: 0.9523809524 | U34: 95.2380952 | V34: 77.85268700 | W34: 31
A35: 2020310242 | B35: 葛思达 | C35: 化工博20 | D35: =[1]德育基础分!BN43 -> 97.2262295 | E35: =[1]德育加分!AF44 -> 3 | F35: =[1]德育扣分!K43 -> 0 | G35: 100.2262295 | H35: 0.9209749 | I35: 92.09749338 | J35: =[1]学习成绩!E42 -> 89.8000000 | K35: =[1]智育加分!CR43 -> 0.0000000 | L35: 0 | M35: 89.8000000 | N35: 0.712792698 | O35: 71.27926976 | P35: 100 | Q35: =[1]文体加分!N45 -> 0 | R35: 0 | S35: 100 | T35: 0.9523809524 | U35: 95.2380952 | V35: 77.83879703 | W35: 32
A36: 2020310234 | B36: 李国省 | C36: 化工博20 | D36: =[1]德育基础分!BN35 -> 97.2147541 | E36: =[1]德育加分!AF36 -> 4 | F36: =[1]德育扣分!K35 -> 0 | G36: 101.2147541 | H36: 0.9300584 | I36: 93.00584479 | J36: =[1]学习成绩!E34 -> 89.0000000 | K36: =[1]智育加分!CR35 -> 0.0000000 | L36: 0 | M36: 89.0000000 | N36: 0.706442651 | O36: 70.64426513 | P36: 100 | Q36: =[1]文体加分!N37 -> 0 | R36: 0 | S36: 100 | T36: 0.9523809524 | U36: 95.2380952 | V36: 77.57596407 | W36: 33
A37: 2020310214 | B37: 傅达理 | C37: 化工博20 | D37: =[1]德育基础分!BN15 -> 97.2262295 | E37: =[1]德育加分!AF16 -> 0 | F37: =[1]德育扣分!K15 -> 0 | G37: 97.2262295 | H37: 0.8934081 | I37: 89.34080502 | J37: =[1]学习成绩!E14 -> 90.2500000 | K37: =[1]智育加分!CR15 -> 0.0000000 | L37: 0 | M37: 90.2500000 | N37: 0.716364599 | O37: 71.63645987 | P37: 100 | Q37: =[1]文体加分!N17 -> 0 | R37: 0 | S37: 100 | T37: 0.9523809524 | U37: 95.2380952 | V37: 77.53749244 | W37: 34
A38: 2020310220 | B38: 宋佳欣 | C38: 化工博20 | D38: =[1]德育基础分!BN21 -> 97.2606557 | E38: =[1]德育加分!AF22 -> 0 | F38: =[1]德育扣分!K21 -> 0 | G38: 97.2606557 | H38: 0.8937244 | I38: 89.37243915 | J38: =[1]学习成绩!E20 -> 90.1000000 | K38: =[1]智育加分!CR21 -> 0.0000000 | L38: 0 | M38: 90.1000000 | N38: 0.715173965 | O38: 71.51739650 | P38: 100 | Q38: =[1]文体加分!N23 -> 0 | R38: 0 | S38: 100 | T38: 0.9523809524 | U38: 95.2380952 | V38: 77.46047490 | W38: 35
A39: 2020310233 | B39: 丁禹 | C39: 化工博20 | D39: =[1]德育基础分!BN34 -> 94.2262295 | E39: =[1]德育加分!AF35 -> 3 | F39: =[1]德育扣分!K34 -> 0 | G39: 97.2262295 | H39: 0.8934081 | I39: 89.34080502 | J39: =[1]学习成绩!E33 -> 90.0200000 | K39: =[1]智育加分!CR34 -> 0.0000000 | L39: 0 | M39: 90.0200000 | N39: 0.714538960 | O39: 71.45389604 | P39: 100 | Q39: =[1]文体加分!N36 -> 0 | R39: 0 | S39: 100 | T39: 0.9523809524 | U39: 95.2380952 | V39: 77.40969775 | W39: 36
A40: 2020310211 | B40: 王尤佳 | C40: 化工博20 | D40: =[1]德育基础分!BN12 -> 97.1918033 | E40: =[1]德育加分!AF13 -> 0.5 | F40: =[1]德育扣分!K12 -> 0 | G40: 97.6918033 | H40: 0.8976862 | I40: 89.76861895 | J40: =[1]学习成绩!E11 -> 89.1400000 | K40: =[1]智育加分!CR12 -> 0.0000000 | L40: 0 | M40: 89.1400000 | N40: 0.707553909 | O40: 70.75539094 | P40: 100 | Q40: =[1]文体加分!N14 -> 0 | R40: 0 | S40: 100 | T40: 0.9523809524 | U40: 95.2380952 | V40: 77.00630697 | W40: 37
A41: 2020310255 | B41: 刘宗鹏 | C41: 化工博20 | D41: =[1]德育基础分!BN56 -> 97.1688525 | E41: =[1]德育加分!AF57 -> 0 | F41: =[1]德育扣分!K56 -> 0 | G41: 97.1688525 | H41: 0.8928808 | I41: 89.28808147 | J41: 89.1400000 | K41: =[1]智育加分!CR56 -> 0.0000000 | L41: 0 | M41: 89.1400000 | N41: 0.707553909 | O41: 70.75539094 | P41: 100 | Q41: =[1]文体加分!N58 -> 0 | R41: 0 | S41: 100 | T41: 0.9523809524 | U41: 95.2380952 | V41: 76.91019948 | W41: 38
A42: 2020310245 | B42: 张波 | C42: 化工博20 | D42: =[1]德育基础分!BN46 -> 98.3737705 | E42: =[1]德育加分!AF47 -> 0 | F42: =[1]德育扣分!K46 -> 0 | G42: 98.3737705 | H42: 0.9039528 | I42: 90.39527598 | J42: =[1]学习成绩!E45 -> 88.6800000 | K42: =[1]智育加分!CR46 -> 0.0000000 | L42: 0 | M42: 88.6800000 | N42: 0.703902633 | O42: 70.39026328 | P42: 100 | Q42: =[1]文体加分!N48 -> 0 | R42: 0 | S42: 100 | T42: 0.9523809524 | U42: 95.2380952 | V42: 76.87604902 | W42: 39
A43: 2020310243 | B43: 刘晗 | C43: 化工博20 | D43: =[1]德育基础分!BN44 -> 97.2147541 | E43: =[1]德育加分!AF45 -> 2 | F43: =[1]德育扣分!K44 -> -15 | G43: 84.2147541 | H43: 0.7738461 | I43: 77.38461076 | J43: =[1]学习成绩!E43 -> 93.3400000 | K43: =[1]智育加分!CR44 -> 0.0000000 | L43: 0 | M43: 93.3400000 | N43: 0.740891653 | O43: 74.08916525 | P43: 100 | Q43: =[1]文体加分!N46 -> 0 | R43: 0 | S43: 100 | T43: 0.9523809524 | U43: 95.2380952 | V43: 76.86314735 | W43: 40
A44: 2020310213 | B44: 王书琦 | C44: 化工博20 | D44: =[1]德育基础分!BN14 -> 97.2147541 | E44: =[1]德育加分!AF15 -> 3 | F44: =[1]德育扣分!K14 -> 0 | G44: 100.2147541 | H44: 0.9208695 | I44: 92.08694867 | J44: =[1]学习成绩!E13 -> 87.9700000 | K44: =[1]智育加分!CR14 -> 0.0000000 | L44: 0 | M44: 87.9700000 | N44: 0.698266967 | O44: 69.82669667 | P44: 100 | Q44: =[1]文体加分!N16 -> 0 | R44: 0 | S44: 100 | T44: 0.9523809524 | U44: 95.2380952 | V44: 76.81988693 | W44: 41
A45: 2020310209 | B45: 景仲雨 | C45: 化工博20 | D45: =[1]德育基础分!BN10 -> 97.2147541 | E45: =[1]德育加分!AF11 -> 0 | F45: =[1]德育扣分!K10 -> 0 | G45: 97.2147541 | H45: 0.8933026 | I45: 89.33026031 | J45: =[1]学习成绩!E9 -> 88.8400000 | K45: =[1]智育加分!CR10 -> 0.0000000 | L45: 0 | M45: 88.8400000 | N45: 0.705172642 | O45: 70.51726421 | P45: 100 | Q45: =[1]文体加分!N12 -> 0 | R45: 0 | S45: 100 | T45: 0.9523809524 | U45: 95.2380952 | V45: 76.75194653 | W45: 42
A46: 2020310222 | B46: 程锋 | C46: 化工博20 | D46: =[1]德育基础分!BN23 -> 97.2491803 | E46: =[1]德育加分!AF24 -> 0 | F46: =[1]德育扣分!K23 -> 0 | G46: 97.2491803 | H46: 0.8936189 | I46: 89.36189444 | J46: =[1]学习成绩!E22 -> 88.2800000 | K46: =[1]智育加分!CR23 -> 0.5000000 | L46: 0 | M46: 88.7800000 | N46: 0.704696389 | O46: 70.46963886 | P46: 100 | Q46: =[1]文体加分!N25 -> 0 | R46: 0 | S46: 100 | T46: 0.9523809524 | U46: 95.2380952 | V46: 76.72493561 | W46: 43
A47: 2020310244 | B47: 王雪杰 | C47: 化工博20 | D47: =[1]德育基础分!BN45 -> 97.2262295 | E47: =[1]德育加分!AF46 -> 0 | F47: =[1]德育扣分!K45 -> 0 | G47: 97.2262295 | H47: 0.8934081 | I47: 89.34080502 | J47: =[1]学习成绩!E44 -> 83.2500000 | K47: =[1]智育加分!CR45 -> 5.3305556 | L47: 0 | M47: 88.5805556 | N47: 0.703113287 | O47: 70.31132868 | P47: 100 | Q47: =[1]文体加分!N47 -> 0 | R47: 0 | S47: 100 | T47: 0.9523809524 | U47: 95.2380952 | V47: 76.60990060 | W47: 44
A48: 2020315202 | B48: 肖寒 | C48: 化工博20 | D48: =[1]德育基础分!BN58 -> 97.1803279 | E48: =[1]德育加分!AF59 -> 0 | F48: =[1]德育扣分!K58 -> 0 | G48: 97.1803279 | H48: 0.8929863 | I48: 89.29862618 | J48: =[1]学习成绩!E57 -> 88.4666667 | K48: =[1]智育加分!CR58 -> 0.0000000 | L48: 0 | M48: 88.4666667 | N48: 0.702209287 | O48: 70.22092874 | P48: 100 | Q48: =[1]文体加分!N60 -> 0 | R48: 0 | S48: 100 | T48: 0.9523809524 | U48: 95.2380952 | V48: 76.53818488 | W48: 45
A49: 2020310232 | B49: 李晓倩 | C49: 化工博20 | D49: =[1]德育基础分!BN33 -> 97.2262295 | E49: =[1]德育加分!AF34 -> 3 | F49: =[1]德育扣分!K33 -> 0 | G49: 100.2262295 | H49: 0.9209749 | I49: 92.09749338 | J49: =[1]学习成绩!E32 -> 87.2000000 | K49: =[1]智育加分!CR33 -> 0.0000000 | L49: 0 | M49: 87.2000000 | N49: 0.692155047 | O49: 69.21550471 | P49: 100 | Q49: =[1]文体加分!N35 -> 0 | R49: 0 | S49: 100 | T49: 0.9523809524 | U49: 95.2380952 | V49: 76.39416150 | W49: 46
A50: 2020310216 | B50: 王文涵 | C50: 化工博20 | D50: =[1]德育基础分!BN17 -> 97.2032787 | E50: =[1]德育加分!AF18 -> 0 | F50: =[1]德育扣分!K17 -> 0 | G50: 97.2032787 | H50: 0.8931972 | I50: 89.3197156 | J50: =[1]学习成绩!E16 -> 87.8000000 | K50: =[1]智育加分!CR17 -> 0.0000000 | L50: 0 | M50: 87.8000000 | N50: 0.696917582 | O50: 69.69175819 | P50: 100 | Q50: =[1]文体加分!N19 -> 0 | R50: 0 | S50: 100 | T50: 0.9523809524 | U50: 95.2380952 | V50: 76.17198338 | W50: 47
A51: 2020315201 | B51: 贾利娜 | C51: 化工博20 | D51: =[1]德育基础分!BN57 -> 97.2377049 | E51: =[1]德育加分!AF58 -> 0 | F51: =[1]德育扣分!K57 -> 0 | G51: 97.2377049 | H51: 0.8935135 | I51: 89.35134973 | J51: =[1]学习成绩!E56 -> 86.4833333 | K51: =[1]智育加分!CR57 -> 0.0000000 | L51: 0 | M51: 86.4833333 | N51: 0.686466464 | O51: 68.64664640 | P51: 100 | Q51: =[1]文体加分!N59 -> 0 | R51: 0 | S51: 100 | T51: 0.9523809524 | U51: 95.2380952 | V51: 75.44673195 | W51: 48
A52: 2020310212 | B52: 葛亚粉 | C52: 化工博20 | D52: =[1]德育基础分!BN13 -> 97.1918033 | E52: =[1]德育加分!AF14 -> 0 | F52: =[1]德育扣分!K13 -> 0 | G52: 97.1918033 | H52: 0.8930917 | I52: 89.30917089 | J52: =[1]学习成绩!E12 -> 85.6500000 | K52: =[1]智育加分!CR13 -> 0.0000000 | L52: 0 | M52: 85.6500000 | N52: 0.679851832 | O52: 67.98518324 | P52: 100 | Q52: =[1]文体加分!N15 -> 0 | R52: 0 | S52: 100 | T52: 0.9523809524 | U52: 95.2380952 | V52: 74.97527197 | W52: 49
A53: 2020310225 | B53: 徐猛猛 | C53: 化工博20 | D53: =[1]德育基础分!BN26 -> 97.2950820 | E53: =[1]德育加分!AF27 -> 3 | F53: =[1]德育扣分!K26 -> 0 | G53: 100.2950820 | H53: 0.9216076 | I53: 92.16076164 | J53: =[1]学习成绩!E25 -> 84.6000000 | K53: =[1]智育加分!CR26 -> 0.0000000 | L53: 0 | M53: 84.6000000 | N53: 0.671517397 | O53: 67.15173967 | P53: 100 | Q53: =[1]文体加分!N28 -> 0 | R53: 0 | S53: 100 | T53: 0.9523809524 | U53: 95.2380952 | V53: 74.96217962 | W53: 50
A54: 2020310230 | B54: 李同辉 | C54: 化工博20 | D54: =[1]德育基础分!BN31 -> 97.1918033 | E54: =[1]德育加分!AF32 -> 0 | F54: =[1]德育扣分!K31 -> 0 | G54: 97.1918033 | H54: 0.8930917 | I54: 89.30917089 | J54: =[1]学习成绩!E30 -> 85.3500000 | K54: =[1]智育加分!CR31 -> 0.0000000 | L54: 0 | M54: 85.3500000 | N54: 0.677470565 | O54: 67.74705651 | P54: 100 | Q54: =[1]文体加分!N33 -> 0 | R54: 0 | S54: 100 | T54: 0.9523809524 | U54: 95.2380952 | V54: 74.80858326 | W54: 51
A55: 2020315203 | B55: 张然 | C55: 化工博20 | D55: =[1]德育基础分!BN59 -> 97.2032787 | E55: =[1]德育加分!AF60 -> 0 | F55: =[1]德育扣分!K59 -> 0 | G55: 97.2032787 | H55: 0.8931972 | I55: 89.3197156 | J55: =[1]学习成绩!E58 -> 85.2000000 | K55: =[1]智育加分!CR59 -> 0.0000000 | L55: 0 | M55: 85.2000000 | N55: 0.676279931 | O55: 67.62799314 | P55: 100 | Q55: =[1]文体加分!N61 -> 0 | R55: 0 | S55: 100 | T55: 0.9523809524 | U55: 95.2380952 | V55: 74.72734784 | W55: 52
A56: 2020310207 | B56: 王超 | C56: 化工博20 | D56: =[1]德育基础分!BN8 -> 97.2377049 | E56: =[1]德育加分!AF9 -> 0 | F56: =[1]德育扣分!K8 -> 0 | G56: 97.2377049 | H56: 0.8935135 | I56: 89.35134973 | J56: =[1]学习成绩!E7 -> 85.0800000 | K56: =[1]智育加分!CR8 -> 0.0000000 | L56: 0 | M56: 85.0800000 | N56: 0.675327424 | O56: 67.53274244 | P56: 100 | Q56: =[1]文体加分!N10 -> 0 | R56: 0 | S56: 100 | T56: 0.9523809524 | U56: 95.2380952 | V56: 74.66699918 | W56: 53
A57: 2020315206 | B57: 热则耶·热合米图力 | C57: 化工博20 | D57: =[1]德育基础分!BN62 -> 97.1688525 | E57: =[1]德育加分!AF63 -> 0 | F57: =[1]德育扣分!K62 -> 0 | G57: 97.1688525 | H57: 0.8928808 | I57: 89.28808147 | J57: =[1]学习成绩!E61 -> 84.8333333 | K57: =[1]智育加分!CR62 -> 0.0000000 | L57: 0 | M57: 84.8333333 | N57: 0.673369493 | O57: 67.33694932 | P57: 100 | Q57: =[1]文体加分!N64 -> 0 | R57: 0 | S57: 100 | T57: 0.9523809524 | U57: 95.2380952 | V57: 74.51729034 | W57: 54
A58: 2020310238 | B58: 努尔古丽·拉提莆 | C58: 化工博20 | D58: =[1]德育基础分!BN39 -> 97.2147541 | E58: =[1]德育加分!AF40 -> 0 | F58: =[1]德育扣分!K39 -> 0 | G58: 97.2147541 | H58: 0.8933026 | I58: 89.33026031 | J58: =[1]学习成绩!E38 -> 83.8000000 | K58: =[1]智育加分!CR39 -> 0.0000000 | L58: 0 | M58: 83.8000000 | N58: 0.665167350 | O58: 66.51673504 | P58: 100 | Q58: =[1]文体加分!N41 -> 0 | R58: 0 | S58: 100 | T58: 0.9523809524 | U58: 95.2380952 | V58: 73.95157611 | W58: 55
A59: 2020310236 | B59: 胡浩杰 | C59: 化工博20 | D59: =[1]德育基础分!BN37 -> 97.2491803 | E59: =[1]德育加分!AF38 -> 0.5 | F59: =[1]德育扣分!K37 -> 0 | G59: 97.7491803 | H59: 0.8982134 | I59: 89.8213425 | J59: =[1]学习成绩!E36 -> 81.7500000 | K59: =[1]智育加分!CR37 -> 0.0000000 | L59: 0 | M59: 81.7500000 | N59: 0.648895357 | O59: 64.88953567 | P59: 100 | Q59: =[1]文体加分!N39 -> 0 | R59: 0 | S59: 100 | T59: 0.9523809524 | U59: 95.2380952 | V59: 72.91075299 | W59: 56
A60: 2020310202 | B60: 黄兴 | C60: 化工博20 | D60: =[1]德育基础分!BN4 -> 97.2377049 | E60: =[1]德育加分!AF5 -> 2 | F60: =[1]德育扣分!K4 -> -15 | G60: 84.2377049 | H60: 0.7740570 | I60: 77.40570017 | J60: =[1]学习成绩!E3 -> 82.8200000 | K60: =[1]智育加分!CR4 -> 0.0000000 | L60: 0 | M60: 82.8200000 | N60: 0.657388544 | O60: 65.73885436 | P60: 100 | Q60: =[1]文体加分!N6 -> 0 | R60: 0 | S60: 100 | T60: 0.9523809524 | U60: 95.2380952 | V60: 71.02214761 | W60: 57
A61: 2020310246 | B61: 陈风江 | C61: 化工博20 | D61: =[1]德育基础分!BN47 -> 97.2147541 | E61: =[1]德育加分!AF48 -> 3 | F61: =[1]德育扣分!K47 -> 0 | G61: 100.2147541 | H61: 0.9208695 | I61: 92.08694867 | J61: =[1]学习成绩!E46 -> 71.4500000 | K61: =[1]智育加分!CR47 -> 0.0000000 | L61: 0 | M61: 71.4500000 | N61: 0.567138511 | O61: 56.71385105 | P61: 100 | Q61: =[1]文体加分!N49 -> 0 | R61: 0 | S61: 100 | T61: 0.9523809524 | U61: 95.2380952 | V61: 67.64089500 | W61: 58
A62: 2020315204 | B62: 张磊 | C62: 化工博20 | D62: =[1]德育基础分!BN60 -> 97.2377049 | E62: =[1]德育加分!AF61 -> 0 | F62: =[1]德育扣分!K60 -> 0 | G62: 97.2377049 | H62: 0.8935135 | I62: 89.35134973 | J62: =[1]学习成绩!E59 -> 60.9000000 | K62: =[1]智育加分!CR60 -> 0.0000000 | L62: 0 | M62: 60.9000000 | N62: 0.483397275 | O62: 48.33972749 | P62: 100 | Q62: =[1]文体加分!N62 -> 0 | R62: 0 | S62: 100 | T62: 0.9523809524 | U62: 95.2380952 | V62: 61.23188871 | W62: 59
A63: 2020315205 | B63: 赵秋实 | C63: 化工博20 | D63: =[1]德育基础分!BN61 -> 97.1688525 | E63: =[1]德育加分!AF62 -> 0 | F63: =[1]德育扣分!K61 -> 0 | G63: 97.1688525 | H63: 0.8928808 | I63: 89.28808147 | J63: =[1]学习成绩!E60 -> 59.5000000 | K63: =[1]智育加分!CR61 -> 0.0000000 | L63: 0 | M63: 59.5000000 | N63: 0.472284694 | O63: 47.22846939 | P63: 100 | Q63: =[1]文体加分!N63 -> 0 | R63: 0 | S63: 100 | T63: 0.9523809524 | U63: 95.2380952 | V63: 60.44135439 | W63: 60
A64: 2020315207 | B64: 王建立 | C64: 化工博20 | D64: =[1]德育基础分!BN63 -> 97.2032787 | E64: =[1]德育加分!AF64 -> 0 | F64: =[1]德育扣分!K63 -> 0 | G64: 97.2032787 | H64: 0.8931972 | I64: 89.3197156 | J64: =[1]学习成绩!E62 -> 0.0000000 | K64: =[1]智育加分!CR63 -> 0.0000000 | L64: 0 | M64: 0.0000000 | N64: 0.000000000 | O64: 0.00000000 | P64: 100 | Q64: =[1]文体加分!N65 -> 0 | R64: 0 | S64: 100 | T64: 0.9523809524 | U64: 95.2380952 | V64: 27.38775264 | W64: 61
